bitfinex/quotes_BTCUSD_20240718
["timestamp","ask_amount","ask_price","bid_price","bid_amount"]
[1721261840271,0.0613,64075.0,64071.0,0.15438174]
[1721261840481,0.1388,64074.0,64064.0,0.72437]
[1721261840643,0.1388,64074.0,64068.0,0.156083]
[1721261840847,0.1388,64074.0,64069.0,0.256081]
[1721261841091,0.1388,64074.0,64069.0,0.1]
[1721261841578,0.1388,64074.0,64070.0,0.23155653]
[1721261841740,0.1388,64074.0,64073.0,0.156071]
[1721261842145,0.1388,64074.0,64073.0,0.468214]
[1721261843181,0.1388,64074.0,64073.0,0.93573874]
[1721261843583,0.46304871,64088.0,64081.0,0.156051]
[1721261843829,0.13239009,64087.0,64081.0,0.156051]
[1721261843996,0.1406,64085.0,64081.0,0.156051]
[1721261844356,0.12959609,64084.0,64081.0,0.156051]
[1721261844563,0.1406,64085.0,64084.0,0.468135]
[1721261844777,0.1406,64085.0,64084.0,0.156045]
[1721261845186,0.1406,64085.0,64084.0,0.780225]
[1721261845499,0.1526,64085.0,64084.0,0.156045]
[1721261845705,0.1406,64085.0,64084.0,0.156045]
[1721261845964,0.1406,64085.0,64084.0,0.468135]
[1721261846129,0.1416,64085.0,64084.0,0.468135]
[1721261846738,0.14343,64085.0,64084.0,0.468135]
[1721261846942,0.14143,64085.0,64084.0,0.468135]
[1721261848228,0.14143,64085.0,64084.0,0.471135]
[1721261848665,0.14143,64085.0,64084.0,0.468135]
[1721261849018,0.4280531,64085.0,64084.0,0.009]
[1721261849318,0.7401381,64085.0,64084.0,0.006]
[1721261849521,0.7401381,64085.0,64077.0,0.000913]
[1721261849522,0.298759,64078.0,64077.0,0.000913]
[1721261849654,0.9651591,64078.0,64077.0,0.000913]
[1721261849991,0.1427,64075.0,64066.0,0.4668]
[1721261850192,0.0791,64070.0,64066.0,0.4668]
[1721261850399,0.01856269,64084.0,64066.0,0.4668]
[1721261850400,0.27391015,64069.0,64066.0,0.4668]
[1721261850612,0.42999415,64068.0,64060.0,0.156102]
[1721261850739,0.12961015,64067.0,64060.0,0.156102]
[1721261850938,0.1443,64066.0,64060.0,0.156102]
[1721261851679,0.1443,64066.0,64057.0,0.512217]
[1721261852065,0.1443,64066.0,64061.0,0.004913]
[1721261852467,0.1443,64066.0,64061.0,0.006913]
[1721261852900,0.1443,64066.0,64061.0,0.163013]
[1721261853474,0.1443,64066.0,64061.0,0.006913]
[1721261854188,0.1443,64066.0,64061.0,0.01003469]
[1721261854390,0.1443,64066.0,64061.0,0.006913]
[1721261855030,0.1443,64066.0,64061.0,0.163013]
[1721261855551,0.1443,64066.0,64065.0,0.156091]
[1721261857305,0.1443,64066.0,64062.0,0.312196]
[1721261857862,0.1443,64066.0,64065.0,0.002]
[1721261858205,0.1443,64066.0,64065.0,0.004]
[1721261859024,0.1443,64066.0,64065.0,0.006]
[1721261859677,0.300389,64066.0,64065.0,0.006]
[1721261859885,0.1443,64066.0,64065.0,0.006]
[1721261869398,0.1443,64066.0,64065.0,0.162091]
[1721261869836,0.1443,64066.0,64065.0,0.006]
[1721261876357,0.1443,64066.0,64065.0,0.162091]
[1721261876597,0.00120928,64067.0,64066.0,0.156089]
[1721261876835,0.00120928,64067.0,64065.0,0.162091]
[1721261877084,0.00120928,64067.0,64066.0,0.78356655]
[1721261877365,0.00120928,64067.0,64066.0,1.24700474]
[1721261877599,0.00120928,64067.0,64066.0,1.29700474]
[1721261877845,0.00120928,64067.0,64066.0,1.25000474]
[1721261878086,0.00120928,64067.0,64066.0,1.75408274]
[1721261878327,0.00120928,64067.0,64066.0,1.80172828]
[1721261879118,0.00120928,64067.0,64066.0,1.80196031]
[1721261879357,0.0006743,64067.0,64066.0,1.79996031]
[1721261879594,0.0016743,64067.0,64066.0,1.80196031]
[1721261879823,0.0026743,64067.0,64066.0,1.76596031]
[1721261880274,0.0026743,64067.0,64066.0,1.81596031]
[1721261880743,0.0026743,64067.0,64066.0,2.75771829]
[1721261880988,0.0026743,64067.0,64066.0,3.12707757]
[1721261881268,0.0026743,64067.0,64066.0,2.64629108]
[1721261881518,0.00501291,64071.0,64070.0,1.798159]
[1721261881758,0.00501291,64071.0,64070.0,3.60133212]
[1721261882737,0.00501291,64071.0,64070.0,3.69467072]
[1721261882982,0.00601291,64071.0,64070.0,2.92168091]
[1721261883214,0.00501291,64071.0,64070.0,2.70402926]
[1721261884311,0.00501291,64071.0,64070.0,2.60428274]
[1721261884524,0.00501291,64071.0,64070.0,2.73229884]
[1721261884734,0.00501291,64071.0,64070.0,2.71829884]
[1721261884941,0.00501291,64071.0,64070.0,2.76496039]
[1721261885146,0.00501291,64071.0,64070.0,2.77896039]
[1721261885360,0.00501291,64071.0,64070.0,3.09111839]
[1721261885564,0.00501291,64071.0,64070.0,3.04445684]
[1721261885769,9.1e-07,64071.0,64070.0,5.46682976]
[1721261885971,9.1e-07,64071.0,64070.0,5.37350666]
[1721261886195,9.1e-07,64071.0,64070.0,5.06134866]
[1721261886365,0.01023561,64075.0,64074.0,2.087454]
[1721261886620,0.01023561,64075.0,64074.0,3.21154366]
[1721261886822,0.01023561,64075.0,64074.0,4.02805477]
[1721261887248,0.01023561,64075.0,64074.0,4.34019377]
[1721261887449,6.1e-07,64075.0,64074.0,4.22398457]
[1721261887835,6.1e-07,64075.0,64074.0,4.29081987]
[1721261888055,6.1e-07,64075.0,64074.0,4.35442057]
[1721261888458,6.1e-07,64075.0,64074.0,4.35442052]
[1721261888632,6.1e-07,64075.0,64074.0,4.23797065]
[1721261888860,6.1e-07,64075.0,64074.0,4.25197065]
[1721261889256,6.1e-07,64075.0,64074.0,5.75197065]
[1721261889461,6.1e-07,64075.0,64074.0,5.84508168]
[1721261889816,6.1e-07,64075.0,64074.0,5.75197065]
[1721261890158,6.1e-07,64075.0,64074.0,6.63504253]
[1721261890337,6.1e-07,64075.0,64074.0,6.63504205]
[1721261890543,6.1e-07,64075.0,64074.0,6.5419693]
[1721261890742,6.1e-07,64075.0,64074.0,6.63501139]
[1721261891357,6.1e-07,64075.0,64074.0,6.5419693]
[1721261891526,6.1e-07,64075.0,64074.0,3.38519226]
[1721261891755,6.1e-07,64075.0,64074.0,3.18420226]
[1721261892175,6.1e-07,64075.0,64074.0,3.40900226]
[1721261892493,6.1e-07,64075.0,64074.0,4.18940156]
[1721261892701,6.1e-07,64075.0,64074.0,3.29463574]
[1721261893557,6.1e-07,64075.0,64074.0,3.24463574]
[1721261893757,6.1e-07,64075.0,64074.0,2.66829674]
[1721261894549,6.1e-07,64075.0,64074.0,1.96829674]
[1721261896983,6.1e-07,64075.0,64074.0,1.65615774]
[1721261897157,6.1e-07,64075.0,64074.0,0.33845074]
[1721261897362,6.1e-07,64075.0,64074.0,0.184069]
[1721261897541,6.1e-07,64075.0,64074.0,0.496208]
[1721261897740,6.1e-07,64075.0,64074.0,0.808347]
[1721261897952,0.14580061,64075.0,64074.0,0.014]
[1721261898203,0.14580061,64075.0,64074.0,0.028]
[1721261898401,0.30186761,64075.0,64074.0,0.028]
[1721261898614,0.1458,64075.0,64074.0,0.014]
[1721261898879,0.1458,64075.0,64065.0,0.000913]
[1721261898880,0.1458,64075.0,64069.0,0.312161]
[1721261899049,0.1468,64075.0,64074.0,0.014]
[1721261899276,0.1458,64075.0,64073.0,0.15607]
[1721261899469,0.312155,64071.0,64065.0,0.000913]
[1721261899717,0.1358,64067.0,64065.0,0.000913]
[1721261899925,0.0604,64066.0,64065.0,0.000913]
[1721261900338,0.1387,64066.0,64065.0,0.000913]
[1721261900751,0.294789,64066.0,64065.0,0.000913]
[1721261901173,0.294789,64066.0,64065.0,0.018913]
[1721261901174,0.295789,64066.0,64065.0,0.018913]
[1721261901560,0.295789,64066.0,64065.0,0.010913]
[1721261901941,0.295789,64066.0,64065.0,0.019913]
[1721261903224,0.607967,64066.0,64065.0,0.019913]
[1721261903403,0.607967,64066.0,64050.0,0.00028212]
[1721261903404,0.468295,64062.0,64050.0,0.00028212]
[1721261903534,1.260889,64062.0,64050.0,0.00028212]
[1721261904855,1.268889,64062.0,64061.0,0.001913]
[1721261905257,1.262889,64062.0,64061.0,0.001913]
[1721261905466,0.301325,64051.0,64050.0,0.00028212]
[1721261905698,0.0796,64050.0,64029.0,0.312356]
[1721261905871,0.0796,64050.0,64015.0,0.07717479]
[1721261905872,0.156182,64028.0,64020.0,0.165362]
[1721261906072,0.1458,64030.0,64021.0,0.15438174]
[1721261906561,0.1458,64030.0,64025.0,0.156187]
[1721261907148,0.1458,64030.0,64023.0,0.156193]
[1721261907350,0.1458,64030.0,64023.0,0.31057474]
[1721261907743,0.1458,64030.0,64023.0,0.46676574]
[1721261907942,0.1458,64030.0,64025.0,0.156187]
[1721261908543,0.1478,64030.0,64025.0,0.156187]
[1721261908743,0.1468,64030.0,64026.0,0.156185]
[1721261909092,0.1458,64030.0,64026.0,0.156185]
[1721261909228,0.1468,64030.0,64026.0,0.156185]
[1721261909431,0.1478,64030.0,64026.0,0.156185]
[1721261909640,0.1478,64030.0,64027.0,0.46674874]
[1721261909838,0.002,64030.0,64029.0,0.468537]
[1721261910034,0.002,64030.0,64029.0,0.93527674]
[1721261910440,0.002,64030.0,64029.0,1.24763474]
[1721261910671,0.001,64030.0,64029.0,1.24763474]
[1721261910876,0.001,64030.0,64029.0,1.34763474]
[1721261911138,0.002,64030.0,64029.0,1.34763474]
[1721261911302,0.0661,64042.0,64035.0,0.156162]
[1721261911710,0.11518256,64042.0,64030.0,0.312353]
[1721261911925,0.27133156,64042.0,64033.0,0.156168]
[1721261912257,0.27133156,64042.0,64034.0,0.15438174]
[1721261912382,0.12418256,64042.0,64034.0,0.31054674]
[1721261912577,0.13418256,64042.0,64034.0,0.31054674]
[1721261912777,0.29032956,64042.0,64034.0,0.31054674]
[1721261912980,0.312304,64040.0,64031.0,0.1]
[1721261913196,0.312304,64040.0,64027.0,0.1]
[1721261913398,0.312304,64040.0,64030.0,0.156174]
[1721261913399,0.468457,64040.0,64030.0,0.156174]
[1721261913598,0.468457,64040.0,64031.0,0.1]
[1721261913599,0.0753,64038.0,64031.0,0.1]
[1721261914462,0.0753,64038.0,64031.0,0.256174]
[1721261914668,0.0753,64038.0,64032.0,0.156171]
[1721261914844,0.0753,64038.0,64031.0,0.1]
[1721261914845,0.0803,64038.0,64031.0,0.1]
[1721261915052,0.236458,64038.0,64031.0,0.1]
[1721261915252,0.0617,64037.0,64031.0,0.1]
[1721261916224,0.1447,64035.0,64026.0,0.467713]
[1721261916521,0.15617,64033.0,64026.0,0.467713]
[1721261917986,0.1447,64035.0,64026.0,0.467713]
[1721261917987,0.1457,64035.0,64030.0,0.07717479]
[1721261918221,0.1457,64035.0,64032.0,0.156171]
[1721261918391,0.1447,64035.0,64032.0,0.156171]
[1721261918838,0.1447,64035.0,64030.0,0.23334979]
[1721261918975,0.1447,64035.0,64030.0,0.07717479]
[1721261919389,0.1457,64035.0,64034.0,0.468501]
[1721261919593,0.001,64035.0,64034.0,0.62288274]
[1721261919850,0.001,64035.0,64034.0,0.93521674]
[1721261921250,0.003,64035.0,64034.0,0.93521674]
[1721261921457,0.001,64035.0,64034.0,0.93521674]
[1721261922125,0.002,64035.0,64034.0,0.93921674]
[1721261922514,0.002,64035.0,64034.0,1.08921674]
[1721261922923,0.002,64035.0,64034.0,1.41465074]
[1721261923578,0.002,64035.0,64034.0,1.03921674]
[1721261923963,0.001,64035.0,64034.0,1.35155074]
[1721261924322,0.001,64035.0,64034.0,1.35055074]
[1721261924521,0.0767,64046.0,64045.0,0.15614]
[1721261925127,0.0767,64046.0,64042.0,0.156146]
[1721261925359,0.0767,64046.0,64039.0,0.2]
[1721261925559,0.0767,64046.0,64041.0,0.156148]
[1721261925762,0.0767,64046.0,64040.0,0.312303]
[1721261925977,0.0777,64046.0,64045.0,0.003]
[1721261927242,0.1479,64037.0,64026.0,0.623899]
[1721261927446,0.1479,64037.0,64027.0,0.31056474]
[1721261927447,0.304061,64037.0,64027.0,0.31056474]
[1721261927650,0.304061,64037.0,64028.0,0.156179]
[1721261928307,0.12968907,64036.0,64027.0,0.15438174]
[1721261928667,0.156177,64030.0,64026.0,0.467713]
[1721261928801,0.1479,64032.0,64026.0,0.467713]
[1721261929011,0.12969695,64031.0,64026.0,0.467713]
[1721261929232,0.28587195,64031.0,64028.0,0.001]
[1721261929437,0.12969703,64030.0,64028.0,0.001]
[1721261929760,0.12969703,64030.0,64026.0,0.467713]
[1721261930490,0.1489,64032.0,64026.0,0.467713]
[1721261930703,0.12969727,64031.0,64026.0,0.467713]
[1721261931269,0.12969727,64031.0,64026.0,0.468713]
[1721261931434,0.12969727,64031.0,64026.0,0.623898]
[1721261931632,0.12969727,64031.0,64028.0,0.001]
[1721261932096,0.12969727,64031.0,64026.0,0.467713]
[1721261932300,0.12969727,64031.0,64026.0,0.000913]
[1721261932908,0.12969727,64031.0,64026.0,0.157098]
[1721261933528,0.12969176,64030.0,64026.0,0.157098]
[1721261933791,0.12969176,64029.0,64026.0,0.157098]
[1721261933967,0.1479,64032.0,64026.0,0.157098]
[1721261934309,0.12969377,64031.0,64026.0,0.157098]
[1721261934718,0.12969377,64031.0,64026.0,0.000913]
[1721261934924,0.12969377,64031.0,64026.0,0.313284]
[1721261935320,0.12969377,64031.0,64026.0,0.469468]
[1721261935537,0.12969377,64031.0,64027.0,0.156183]
[1721261935741,0.12969377,64031.0,64028.0,0.156181]
[1721261935947,0.12969377,64031.0,64026.0,0.314285]
[1721261936150,0.12969377,64031.0,64027.0,0.156183]
[1721261936766,0.1479,64032.0,64027.0,0.156183]
[1721261936913,0.12969232,64031.0,64027.0,0.156183]
[1721261937143,0.12969232,64031.0,64026.0,0.159099]
[1721261937725,0.12969232,64031.0,64027.0,0.156183]
[1721261938681,0.12969232,64031.0,64028.0,0.15618]
[1721261939028,0.12969232,64031.0,64027.0,0.002]
[1721261939252,0.12969232,64031.0,64027.0,0.003]
[1721261939659,0.12969232,64031.0,64027.0,0.159183]
[1721261939864,0.1479,64032.0,64027.0,0.158183]
[1721261940161,0.12799358,64031.0,64028.0,0.002]
[1721261940480,0.12799358,64031.0,64029.0,0.156179]
[1721261940695,0.12799358,64031.0,64030.0,0.62291074]
[1721261940903,0.0602,64036.0,64035.0,0.312329]
[1721261941103,0.12841684,64036.0,64031.0,0.312344]
[1721261941305,0.12841684,64036.0,64030.0,0.156175]
[1721261941734,0.12841684,64036.0,64029.0,0.314354]
[1721261941963,0.12841684,64036.0,64030.0,0.31235]
[1721261942154,0.0782,64037.0,64031.0,0.156172]
[1721261942564,0.001,64036.0,64032.0,0.15617]
[1721261942763,0.001,64036.0,64035.0,0.468493]
[1721261943311,0.0602,64040.0,64036.0,0.312324]
[1721261943509,0.19014637,64044.0,64040.0,0.15615]
[1721261943773,0.11657468,64043.0,64041.0,0.156147]
[1721261943988,0.11657468,64043.0,64041.0,0.156149]
[1721261944119,0.141,64044.0,64041.0,0.156149]
[1721261944534,0.0608,64049.0,64048.0,0.62453]
[1721261944768,0.04908962,64054.0,64053.0,0.15612]
[1721261944769,0.10988962,64054.0,64053.0,0.15612]
[1721261944968,0.0608,64054.0,64053.0,0.468361]
[1721261945606,0.0762,64055.0,64054.0,0.156118]
[1721261945994,0.0762,64055.0,64048.0,0.15438174]
[1721261946206,0.0762,64055.0,64041.0,0.16999663]
[1721261946207,0.0762,64055.0,64052.0,0.156122]
[1721261946521,0.0762,64055.0,64053.0,0.001]
[1721261947743,0.0762,64055.0,64052.0,0.156122]
[1721261947973,0.0782,64055.0,64054.0,0.002]
[1721261948349,0.0782,64055.0,64052.0,0.156122]
[1721261949391,0.0762,64055.0,64052.0,0.156122]
[1721261949592,0.0762,64055.0,64053.0,0.15612]
[1721261949789,0.0772,64055.0,64053.0,0.15612]
[1721261950507,0.0762,64055.0,64054.0,0.156118]
[1721261950735,0.0792,64055.0,64054.0,0.156118]
[1721261950968,0.0792,64055.0,64054.0,0.62273574]
[1721261950969,0.003,64055.0,64054.0,0.62273574]
[1721261951168,0.003,64055.0,64054.0,0.93497174]
[1721261951378,0.003,64055.0,64054.0,0.62273574]
[1721261951962,0.001,64055.0,64054.0,0.62273574]
[1721261952221,0.002,64055.0,64054.0,0.62273574]
[1721261952421,0.0627,64058.0,64055.0,0.156114]
[1721261953127,0.0627,64058.0,64056.0,0.156113]
[1721261953503,0.0627,64058.0,64055.0,0.158113]
[1721261953691,0.0627,64058.0,64056.0,0.156113]
[1721261953921,0.0627,64058.0,64055.0,0.004]
[1721261954116,0.0627,64058.0,64055.0,0.002]
[1721261954314,0.0627,64058.0,64056.0,0.002]
[1721261954595,0.0799,64061.0,64056.0,0.002]
[1721261954596,0.0799,64061.0,64057.0,0.312221]
[1721261954804,0.0799,64061.0,64060.0,0.156103]
[1721261955266,0.1421,64070.0,64069.0,0.156081]
[1721261955403,0.1421,64070.0,64069.0,0.468244]
[1721261955994,0.00083,64075.0,64069.0,0.312163]
[1721261955995,0.13723,64075.0,64069.0,0.312163]
[1721261956200,0.13723,64075.0,64074.0,0.156069]
[1721261956407,0.13723,64075.0,64074.0,0.468208]
[1721261956793,0.07653,64075.0,64074.0,0.156069]
[1721261956924,0.07653,64075.0,64074.0,0.468208]
[1721261957142,0.07653,64075.0,64074.0,0.156069]
[1721261957528,0.07653,64075.0,64074.0,0.160069]
[1721261957758,0.07653,64075.0,64074.0,0.004]
[1721261957921,0.232597,64075.0,64067.0,0.156084]
[1721261958117,0.232597,64075.0,64069.0,0.001]
[1721261958118,0.07653,64075.0,64069.0,0.001]
[1721261958318,0.07653,64075.0,64074.0,0.005]
[1721261958570,0.544731,64075.0,64074.0,0.005]
[1721261958774,0.232597,64075.0,64074.0,0.005]
[1721261959542,0.238597,64075.0,64074.0,0.001]
[1721261959769,0.238597,64075.0,64067.0,0.156085]
[1721261959770,0.232597,64075.0,64067.0,0.156085]
[1721261959981,0.08353,64075.0,64074.0,0.001]
[1721261960406,0.08353,64075.0,64074.0,0.62358974]
[1721261960618,0.00783,64075.0,64074.0,1.31290353]
[1721261960788,0.01083,64075.0,64074.0,1.54786774]
[1721261961201,0.00383,64075.0,64074.0,1.54686774]
[1721261961382,0.00083,64075.0,64074.0,1.54686774]
[1721261961562,0.00483,64075.0,64074.0,1.54686774]
[1721261962190,0.00583,64075.0,64074.0,1.55686774]
[1721261962403,0.00083,64075.0,64074.0,1.54686774]
[1721261962611,0.00183,64075.0,64074.0,1.55886774]
[1721261962852,0.00483,64075.0,64074.0,1.55886774]
[1721261963369,0.00183,64075.0,64074.0,1.55886774]
[1721261963783,0.00283,64075.0,64074.0,1.57086774]
[1721261967788,0.00283,64075.0,64074.0,1.88300674]
[1721261968003,0.00283,64075.0,64074.0,1.93300674]
[1721261968137,0.00283,64075.0,64074.0,1.99930674]
[1721261968544,0.00283,64075.0,64074.0,2.38764574]
[1721261968861,0.00283,64075.0,64074.0,2.41893574]
[1721261969023,0.00283,64075.0,64074.0,2.10679674]
[1721261969223,0.00083,64077.0,64076.0,1.48587]
[1721261969428,0.00083,64077.0,64076.0,1.74025174]
[1721261970487,0.00183,64077.0,64076.0,1.75425174]
[1721261971308,0.00183,64077.0,64076.0,1.76825174]
[1721261972680,0.00183,64077.0,64076.0,2.14648074]
[1721261972890,0.00183,64077.0,64076.0,2.24718074]
[1721261973554,0.00083,64077.0,64076.0,2.18318074]
[1721261973856,0.00083,64077.0,64076.0,2.24718074]
[1721261975262,0.00083,64077.0,64076.0,2.23318074]
[1721261975666,0.00083,64077.0,64076.0,2.24718074]
[1721261976362,0.00083,64077.0,64076.0,2.21918074]
[1721261976768,0.00083,64077.0,64076.0,2.24718074]
[1721261977661,0.04863009,64099.0,64098.0,0.156011]
[1721261977884,0.04863009,64099.0,64098.0,0.62241474]
[1721261978097,0.52694871,64103.0,64102.0,0.468003]
[1721261978098,0.0639,64103.0,64102.0,0.468003]
[1721261978270,0.0639,64103.0,64102.0,0.62238474]
[1721261978493,0.0639,64103.0,64102.0,0.25438174]
[1721261979328,0.0639,64103.0,64102.0,0.41138274]
[1721261979719,0.0639,64103.0,64102.0,0.25538174]
[1721261979920,0.1422,64103.0,64102.0,0.101]
[1721261980184,0.1422,64103.0,64102.0,0.001]
[1721261981121,0.922192,64103.0,64102.0,0.001]
[1721261981506,0.922192,64103.0,64098.0,0.005]
[1721261981507,1.239559,64099.0,64098.0,0.005]
[1721261982086,0.156031,64090.0,64082.0,0.002794]
[1721261982290,0.1475,64089.0,64082.0,0.156049]
[1721261982524,0.0661,64088.0,64082.0,0.156049]
[1721261982952,0.0661,64088.0,64083.0,0.156045]
[1721261983140,0.0661,64088.0,64086.0,0.156039]
[1721261983338,0.0661,64088.0,64087.0,0.5698]
[1721261984096,0.1484,64088.0,64087.0,0.5698]
[1721261984296,0.1484,64088.0,64087.0,0.003]
[1721261984297,0.616505,64088.0,64087.0,0.003]
[1721261984497,0.1481,64081.0,64074.0,0.158862]
[1721261984723,0.0823,64081.0,64072.0,0.2]
[1721261984922,0.1481,64079.0,64073.0,0.002794]
[1721261985138,0.304157,64079.0,64073.0,0.002794]
[1721261985298,0.304157,64079.0,64072.0,0.35438174]
[1721261985495,0.1481,64079.0,64072.0,0.51045474]
[1721261985719,0.1481,64079.0,64074.0,0.004]
[1721261986120,0.1481,64079.0,64074.0,0.006794]
[1721261987388,0.1481,64079.0,64074.0,0.106794]
[1721261987590,0.156054,64080.0,64074.0,0.110794]
[1721261987591,0.1376,64078.0,64074.0,0.110794]
[1721261987763,0.1376,64078.0,64074.0,0.1]
[1721261987969,0.1376,64078.0,64075.0,0.002794]
[1721261988344,0.001,64079.0,64071.0,0.002794]
[1721261988345,0.297568,64075.0,64071.0,0.002794]
[1721261988956,0.1415,64075.0,64065.0,0.07717479]
[1721261989211,0.1415,64075.0,64072.0,0.006]
[1721261989619,0.1415,64075.0,64067.0,0.002794]
[1721261989818,0.1415,64075.0,64068.0,0.31046374]
[1721261990126,0.236674,64072.0,64071.0,0.004]
[1721261990425,0.1428,64072.0,64067.0,0.002794]
[1721261990569,0.1428,64072.0,64067.0,0.102794]
[1721261990764,0.1428,64072.0,64067.0,0.106794]
[1721261991795,0.1428,64072.0,64071.0,0.004]
[1721261992194,0.1428,64072.0,64068.0,0.002794]
[1721261992618,0.1438,64072.0,64068.0,0.002794]
[1721261993155,0.1448,64072.0,64071.0,0.008]
[1721261993312,0.1438,64072.0,64068.0,0.010794]
[1721261994034,0.1438,64072.0,64068.0,0.002794]
[1721261994617,0.1438,64072.0,64069.0,0.31046174]
[1721261994819,0.1438,64072.0,64070.0,0.002794]
[1721261995228,0.1448,64072.0,64070.0,0.002794]
[1721261995407,0.1438,64072.0,64071.0,0.008]
[1721261995780,0.1448,64072.0,64071.0,0.008]
[1721261996102,0.1448,64072.0,64068.0,0.156083]
[1721261996103,0.1438,64072.0,64068.0,0.002794]
[1721261996342,0.299874,64072.0,64070.0,0.016]
[1721261996527,0.922382,64071.0,64070.0,0.016]
[1721261996726,0.1426,64070.0,64059.0,0.002794]
[1721261996927,0.298703,64060.0,64053.0,0.002794]
[1721261997128,0.298703,64060.0,64053.0,0.15438174]
[1721261997329,0.083,64059.0,64053.0,0.15438174]
[1721261997583,0.083,64057.0,64053.0,0.15438174]
[1721261999207,0.084,64057.0,64053.0,0.16638174]
[1721261999637,0.084,64057.0,64053.0,0.33350174]
[1721261999860,0.084,64057.0,64053.0,0.17738174]
[1721262000082,0.084,64057.0,64054.0,0.07717479]
[1721262000440,0.084,64057.0,64053.0,0.33350174]
[1721262000654,0.084,64057.0,64053.0,0.17738174]
[1721262000852,0.084,64057.0,64054.0,0.002794]
[1721262001052,0.084,64057.0,64054.0,0.158911]
[1721262001278,0.084,64057.0,64053.0,0.17738174]
[1721262001476,0.083,64057.0,64054.0,0.002794]
[1721262001681,0.084,64057.0,64054.0,0.014794]
[1721262001854,0.084,64057.0,64054.0,0.023]
[1721262002054,0.084,64057.0,64055.0,0.156115]
[1721262002258,0.084,64057.0,64056.0,0.002794]
[1721262002481,0.084,64057.0,64055.0,0.158909]
[1721262002858,0.001,64057.0,64056.0,0.93494674]
[1721262003185,0.11398771,64066.0,64062.0,0.312197]
[1721262003337,0.11398771,64066.0,64063.0,0.31047674]
[1721262003564,0.0644,64066.0,64063.0,0.15438174]
[1721262003760,0.0644,64066.0,64064.0,0.002794]
[1721262003985,0.0804,64068.0,64065.0,0.15438174]
[1721262004184,0.0804,64068.0,64067.0,0.156086]
[1721262004405,0.0804,64068.0,64067.0,0.15438174]
[1721262005181,0.0804,64068.0,64067.0,0.31046774]
[1721262005399,0.0804,64068.0,64067.0,0.15438174]
[1721262005574,0.0814,64068.0,64067.0,0.15438174]
[1721262006216,0.0824,64068.0,64061.0,0.312201]
[1721262006390,0.0824,64068.0,64063.0,0.156095]
[1721262006596,0.0824,64068.0,64064.0,0.15717574]
[1721262006801,0.0814,64068.0,64064.0,0.15717574]
[1721262008144,0.0814,64068.0,64067.0,0.468259]
[1721262008145,0.002,64068.0,64067.0,0.468259]
[1721262008351,0.001,64068.0,64067.0,0.62264074]
[1721262008549,0.002,64068.0,64067.0,0.62264074]
[1721262008698,0.001,64068.0,64067.0,0.62264074]
[1721262008912,0.0611,64070.0,64067.0,0.62264074]
[1721262008913,0.0611,64070.0,64069.0,0.156081]
[1721262009107,0.0611,64070.0,64069.0,0.31046274]
[1721262009312,0.0611,64070.0,64066.0,0.156087]
[1721262009510,0.0611,64070.0,64067.0,0.31326074]
[1721262009688,0.0611,64070.0,64067.0,0.31926074]
[1721262009890,0.0611,64070.0,64067.0,0.31626074]
[1721262010293,0.0611,64070.0,64067.0,0.16017574]
[1721262010729,0.0611,64070.0,64067.0,0.005794]
[1721262010908,0.0611,64070.0,64067.0,0.003]
[1721262011107,0.0611,64070.0,64065.0,0.002794]
[1721262011291,0.0611,64070.0,64069.0,0.001]
[1721262011700,0.29968,64070.0,64069.0,0.001]
[1721262011900,0.30068,64070.0,64069.0,0.001]
[1721262012105,0.156082,64069.0,64064.0,0.002794]
[1721262012304,0.149,64064.0,64057.0,0.1]
[1721262012507,0.149,64064.0,64058.0,0.15717574]
[1721262012743,0.156106,64059.0,64058.0,0.002794]
[1721262012974,0.2248,64065.0,64054.0,0.000913]
[1721262012975,0.156115,64055.0,64054.0,0.000913]
[1721262013171,0.305115,64055.0,64054.0,0.000913]
[1721262013374,0.617346,64055.0,64054.0,0.000913]
[1721262016194,1.74747307,64051.0,64050.0,0.00375724]
[1721262016392,1.74747307,64051.0,64050.0,0.00475724]
[1721262016393,1.75447307,64051.0,64050.0,0.00475724]
[1721262016541,1.76847307,64051.0,64050.0,0.00575724]
[1721262016952,1.30184033,64051.0,64050.0,0.00575724]
[1721262017527,1.61409133,64051.0,64050.0,0.00575724]
[1721262017734,1.58009133,64051.0,64050.0,0.00375724]
[1721262017962,1.58509133,64051.0,64050.0,0.00475724]
[1721262018168,1.59809133,64051.0,64050.0,0.00575724]
[1721262018571,1.28084033,64051.0,64050.0,0.00475724]
[1721262018734,1.28084033,64051.0,64050.0,0.00675724]
[1721262018735,0.29341333,64051.0,64050.0,0.00675724]
[1721262018943,0.18,64051.0,64050.0,0.00675724]
[1721262019848,0.031,64051.0,64050.0,0.00675724]
[1721262020287,0.031,64051.0,64050.0,0.62952298]
[1721262020470,0.031,64051.0,64050.0,1.14177898]
[1721262020705,0.031,64051.0,64050.0,0.00675724]
[1721262020916,0.005,64051.0,64050.0,0.00755124]
[1721262021114,0.005,64051.0,64050.0,0.00475724]
[1721262021321,0.017,64051.0,64050.0,0.00575724]
[1721262021543,0.017,64051.0,64050.0,0.00475724]
[1721262021860,0.018,64051.0,64050.0,0.01075724]
[1721262022058,0.005,64051.0,64050.0,0.00475724]
[1721262022333,0.005,64051.0,64050.0,0.00575724]
[1721262022507,0.005,64051.0,64050.0,0.00475724]
[1721262022508,0.475376,64051.0,64050.0,0.00475724]
[1721262022924,0.168125,64051.0,64050.0,0.00575724]
[1721262023390,0.168125,64051.0,64050.0,0.00475724]
[1721262023391,0.932227,64051.0,64050.0,0.00475724]
[1721262023766,0.932227,64051.0,64050.0,0.00575724]
[1721262023767,0.937227,64051.0,64050.0,0.00575724]
[1721262023973,0.930227,64051.0,64050.0,0.00475724]
[1721262024171,0.925227,64051.0,64050.0,0.00375724]
[1721262024374,0.932227,64051.0,64050.0,0.00475724]